[Event "January 9 Early 2024"]
[Site "https://www.chess.com"]
[Date "2024.01.11"]
[Round "9"]
[White "Lopusiewicz, Piotr"]
[Black "Golubovic, Erik"]
[Result "0-1"]
[Board "197"]
[TimeControl "180+1"]
[WhiteFideId "1116029"]
[BlackFideId "14586908"]
[WhiteElo "2470"]
[BlackElo "2295"]
[WhiteTeam "POL"]
[BlackTeam "CRO"]
[WhiteClock "0:00:01"]
[BlackClock "0:00:06"]

1. d4 {[%clk 0:03:00]}  Nf6 {[%clk 0:02:59]} 2. c4 {[%clk 0:03:01]}  c5 {[%clk 0:02:56]} 3. d5 {[%clk 0:03:00]}  b5 {[%clk 0:02:56]} 4. cxb5 {[%clk 0:03:00]}  a6 {[%clk 0:02:56]} 5. bxa6 {[%clk 0:03:01]}  Bxa6 {[%clk 0:02:55]} 6. Nc3 {[%clk 0:03:00]}  d6 {[%clk 0:02:55]} 7. e4 {[%clk 0:03:01]}  Bxf1 {[%clk 0:02:54]} 8. Kxf1 {[%clk 0:03:01]}  g6 {[%clk 0:02:55]} 9. g3 {[%clk 0:03:02]}  Bg7 {[%clk 0:02:55]} 10. Kg2 {[%clk 0:03:03]}  O-O {[%clk 0:02:56]} 11. Nf3 {[%clk 0:03:03]}  Nbd7 {[%clk 0:02:56]} 12. a4 {[%clk 0:03:04]}  Qb6 {[%clk 0:02:47]} 13. Re1 {[%clk 0:02:51]}  Rfb8 {[%clk 0:02:27]} 14. Nb5 {[%clk 0:02:47]}  Ne8 {[%clk 0:02:18]} 15. Qc2 {[%clk 0:02:34]}  Nc7 {[%clk 0:02:15]} 16. Nxc7 {[%clk 0:02:34]}  Qxc7 {[%clk 0:02:15]} 17. Rb1 {[%clk 0:02:19]}  Rb4 {[%clk 0:01:49]} 18. b3 {[%clk 0:02:12]}  Rab8 {[%clk 0:01:42]} 19. Bd2 {[%clk 0:02:08]}  R4b7 {[%clk 0:01:41]} 20. b4 {[%clk 0:01:57]}  cxb4 {[%clk 0:01:31]} 21. Qxc7 {[%clk 0:01:56]}  Rxc7 {[%clk 0:01:32]} 22. Rxb4 {[%clk 0:01:57]}  Rxb4 {[%clk 0:01:03]} 23. Bxb4 {[%clk 0:01:57]}  Rc4 {[%clk 0:00:59]} 24. Rb1 {[%clk 0:01:52]}  Rxe4 {[%clk 0:00:51]} 25. a5 {[%clk 0:01:52]}  Re2 {[%clk 0:00:49]} 26. Rb3 {[%clk 0:01:45]}  Nc5 {[%clk 0:00:32]} 27. Bxc5 {[%clk 0:01:43]}  dxc5 {[%clk 0:00:33]} 28. Rb8+ {[%clk 0:01:11]}  Bf8 {[%clk 0:00:31]} 29. Rc8 {[%clk 0:01:12]}  Ra2 {[%clk 0:00:20]} 30. Ne5 {[%clk 0:01:05]}  Rxa5 {[%clk 0:00:12]} 31. Nd7 {[%clk 0:01:03]}  Ra7 {[%clk 0:00:10]} 32. Nxf8 {[%clk 0:00:57]}  Kg7 {[%clk 0:00:10]} 33. Kf3 {[%clk 0:00:54]}  c4 {[%clk 0:00:08]} 34. Ke3 {[%clk 0:00:52]}  c3 {[%clk 0:00:06]} 35. Kd3 {[%clk 0:00:52]}  Ra5 {[%clk 0:00:06]} 36. Kxc3 {[%clk 0:00:43]}  Rxd5 {[%clk 0:00:06]} 37. Kc2 {[%clk 0:00:23]}  Rd6 {[%clk 0:00:06]} 38. h4 {[%clk 0:00:21]}  h5 {[%clk 0:00:06]} 39. Kc3 {[%clk 0:00:21]}  Rd5 {[%clk 0:00:07]} 40. Re8 {[%clk 0:00:20]}  e6 {[%clk 0:00:06]} 41. Nxe6+ {[%clk 0:00:19]}  fxe6 {[%clk 0:00:07]} 42. Rxe6 {[%clk 0:00:19]}  Kf7 {[%clk 0:00:07]} 43. Re3 {[%clk 0:00:18]}  Rd1 {[%clk 0:00:07]} 44. Rd3 {[%clk 0:00:17]}  Rf1 {[%clk 0:00:07]} 45. Rd2 {[%clk 0:00:18]}  Kf6 {[%clk 0:00:07]} 46. Kd3 {[%clk 0:00:18]}  Ra1 {[%clk 0:00:07]} 47. Ke3 {[%clk 0:00:18]}  Ra3+ {[%clk 0:00:07]} 48. Rd3 {[%clk 0:00:18]}  Ra4 {[%clk 0:00:08]} 49. Rd4 {[%clk 0:00:18]}  Ra3+ {[%clk 0:00:08]} 50. Kf4 {[%clk 0:00:18]}  Ra6 {[%clk 0:00:08]} 51. f3 {[%clk 0:00:18]}  Rb6 {[%clk 0:00:08]} 52. Rc4 {[%clk 0:00:18]}  Ra6 {[%clk 0:00:08]} 53. g4 {[%clk 0:00:18]}  hxg4 {[%clk 0:00:08]} 54. fxg4 {[%clk 0:00:18]}  g5+ {[%clk 0:00:07]} 55. hxg5+ {[%clk 0:00:12]}  Kg6 {[%clk 0:00:07]} 56. Rd4 {[%clk 0:00:13]}  Rb6 {[%clk 0:00:06]} 57. Ra4 {[%clk 0:00:10]}  Rc6 {[%clk 0:00:06]} 58. Rb4 {[%clk 0:00:02]}  Ra6 {[%clk 0:00:06]} 59. Rd4 {[%clk 0:00:02]}  Rb6 {[%clk 0:00:07]} 60. Ra4 {[%clk 0:00:02]}  Rc6 {[%clk 0:00:07]} 61. Ra5 {[%clk 0:00:01]}  Rb6 {[%clk 0:00:06]} 0-1

[Event "January 9 Early 2024"]
[Site "https://www.chess.com"]
[Date "2024.01.11"]
[Round "9"]
[White "Ghosh, Chanchal Kumer"]
[Black "Santos Flores, Alberto"]
[Result "0-1"]
[Board "206"]
[TimeControl "180+1"]
[WhiteFideId "10201858"]
[BlackFideId "3601234"]
[WhiteElo "2093"]
[BlackElo "2509"]
[WhiteTeam "BAN"]
[BlackTeam "ECU"]
[WhiteClock "0:00:05"]
[BlackClock "0:00:04"]

1. e4 {[%clk 0:02:53]}  e6 {[%clk 0:02:59]} 2. Nf3 {[%clk 0:02:54]}  d5 {[%clk 0:02:58]} 3. Nc3 {[%clk 0:02:55]}  Nf6 {[%clk 0:02:58]} 4. e5 {[%clk 0:02:55]}  Ne4 {[%clk 0:02:58]} 5. d3 {[%clk 0:02:54]}  Nxc3 {[%clk 0:02:57]} 6. bxc3 {[%clk 0:02:55]}  c5 {[%clk 0:02:57]} 7. d4 {[%clk 0:02:54]}  Nc6 {[%clk 0:02:52]} 8. Bd3 {[%clk 0:02:50]}  Qa5 {[%clk 0:02:45]} 9. Bd2 {[%clk 0:02:48]}  cxd4 {[%clk 0:02:45]} 10. cxd4 {[%clk 0:02:47]}  Bb4 {[%clk 0:02:45]} 11. a3 {[%clk 0:02:29]}  Bxd2+ {[%clk 0:02:42]} 12. Qxd2 {[%clk 0:02:30]}  Qxd2+ {[%clk 0:02:39]} 13. Kxd2 {[%clk 0:02:31]}  b6 {[%clk 0:02:38]} 14. c4 {[%clk 0:02:25]}  dxc4 {[%clk 0:02:36]} 15. Bxc4 {[%clk 0:02:26]}  Bb7 {[%clk 0:02:34]} 16. Rhd1 {[%clk 0:02:22]}  Ke7 {[%clk 0:02:26]} 17. Ke1 {[%clk 0:02:20]}  Rhd8 {[%clk 0:02:25]} 18. d5 {[%clk 0:02:17]}  exd5 {[%clk 0:02:20]} 19. Bxd5 {[%clk 0:02:16]}  Na5 {[%clk 0:02:15]} 20. Bxb7 {[%clk 0:02:14]}  Nxb7 {[%clk 0:02:15]} 21. Ng5 {[%clk 0:02:07]}  Nc5 {[%clk 0:02:10]} 22. Ke2 {[%clk 0:01:57]}  h6 {[%clk 0:02:08]} 23. Nh3 {[%clk 0:01:53]}  g5 {[%clk 0:02:06]} 24. f4 {[%clk 0:01:51]}  gxf4 {[%clk 0:01:49]} 25. Nxf4 {[%clk 0:01:52]}  Rxd1 {[%clk 0:01:48]} 26. Rxd1 {[%clk 0:01:51]}  Rd8 {[%clk 0:01:43]} 27. Nd5+ {[%clk 0:01:39]}  Kf8 {[%clk 0:01:40]} 28. Ke3 {[%clk 0:01:31]}  b5 {[%clk 0:01:31]} 29. Nc3 {[%clk 0:01:24]}  Rxd1 {[%clk 0:01:30]} 30. Nxd1 {[%clk 0:01:24]}  Ke7 {[%clk 0:01:24]} 31. Kd4 {[%clk 0:01:24]}  Nd7 {[%clk 0:01:21]} 32. Kd5 {[%clk 0:01:23]}  a5 {[%clk 0:01:20]} 33. Ne3 {[%clk 0:01:15]}  b4 {[%clk 0:01:16]} 34. axb4 {[%clk 0:01:14]}  axb4 {[%clk 0:01:17]} 35. Nf5+ {[%clk 0:01:11]}  Kf8 {[%clk 0:01:13]} 36. Nd4 {[%clk 0:01:10]}  Kg7 {[%clk 0:01:06]} 37. g4 {[%clk 0:01:07]}  Kg6 {[%clk 0:01:02]} 38. h4 {[%clk 0:01:07]}  h5 {[%clk 0:01:00]} 39. g5 {[%clk 0:01:07]}  Nf8 {[%clk 0:00:52]} 40. Kc4 {[%clk 0:01:00]}  Nh7 {[%clk 0:00:48]} 41. Kxb4 {[%clk 0:00:59]}  Nxg5 {[%clk 0:00:48]} 42. hxg5 {[%clk 0:00:49]}  Kxg5 {[%clk 0:00:48]} 43. Kc4 {[%clk 0:00:49]}  Kf4 {[%clk 0:00:46]} 44. Kd5 {[%clk 0:00:45]}  h4 {[%clk 0:00:44]} 45. Ne2+ {[%clk 0:00:40]}  Kf3 {[%clk 0:00:36]} 46. Nd4+ {[%clk 0:00:32]}  Kg2 {[%clk 0:00:28]} 47. Ne2 {[%clk 0:00:16]}  Kf3 {[%clk 0:00:28]} 48. Nd4+ {[%clk 0:00:16]}  Kf2 {[%clk 0:00:28]} 49. Ke4 {[%clk 0:00:15]}  h3 {[%clk 0:00:19]} 50. Nf5 {[%clk 0:00:11]}  h2 {[%clk 0:00:18]} 51. Nd6 {[%clk 0:00:09]}  h1=Q+ {[%clk 0:00:18]} 52. Kf5 {[%clk 0:00:09]}  Qh5+ {[%clk 0:00:17]} 53. Kf6 {[%clk 0:00:08]}  Qg6+ {[%clk 0:00:16]} 54. Ke7 {[%clk 0:00:07]}  Qe6+ {[%clk 0:00:16]} 55. Kf8 {[%clk 0:00:08]}  Qxe5 {[%clk 0:00:15]} 56. Nxf7 {[%clk 0:00:08]}  Qf6 {[%clk 0:00:16]} 57. Kg8 {[%clk 0:00:08]}  Kf3 {[%clk 0:00:15]} 58. Nh8 {[%clk 0:00:08]}  Qe7 {[%clk 0:00:09]} 59. Nf7 {[%clk 0:00:09]}  Kg4 {[%clk 0:00:07]} 60. Kg7 {[%clk 0:00:10]}  Kf5 {[%clk 0:00:06]} 61. Kg8 {[%clk 0:00:08]}  Kg6 {[%clk 0:00:05]} 62. Nh8+ {[%clk 0:00:08]}  Kh6 {[%clk 0:00:04]} 63. Nf7+ {[%clk 0:00:08]}  Kg6 {[%clk 0:00:03]} 64. Nh8+ {[%clk 0:00:06]}  Kf6 {[%clk 0:00:03]} 65. Nf7 {[%clk 0:00:04]}  Qxf7+ {[%clk 0:00:03]} 66. Kh8 {[%clk 0:00:05]}  Qg7# {[%clk 0:00:04]} 0-1

[Event "January 9 Early 2024"]
[Site "https://www.chess.com"]
[Date "2024.01.11"]
[Round "9"]
[White "Kolmagorov, Alexey"]
[Black "Tikhonov, Viacheslav"]
[Result "1-0"]
[Board "207"]
[TimeControl "180+1"]
[WhiteFideId "34129402"]
[BlackFideId "44196407"]
[WhiteElo "2392"]
[BlackElo "2512"]
[WhiteTeam "RUS"]
[BlackTeam "RUS"]
[WhiteClock "0:00:42"]
[BlackClock "0:00:08"]

1. d4 {[%clk 0:03:00]}  Nf6 {[%clk 0:02:58]} 2. c4 {[%clk 0:03:00]}  g6 {[%clk 0:02:57]} 3. g3 {[%clk 0:03:00]}  c6 {[%clk 0:02:57]} 4. Bg2 {[%clk 0:03:00]}  d5 {[%clk 0:02:58]} 5. Nf3 {[%clk 0:03:01]}  Bg7 {[%clk 0:02:58]} 6. Nbd2 {[%clk 0:03:02]}  O-O {[%clk 0:02:58]} 7. O-O {[%clk 0:03:02]}  Bf5 {[%clk 0:02:56]} 8. b3 {[%clk 0:03:03]}  a5 {[%clk 0:02:55]} 9. Bb2 {[%clk 0:03:03]}  a4 {[%clk 0:02:56]} 10. Nh4 {[%clk 0:03:01]}  Be6 {[%clk 0:02:55]} 11. e4 {[%clk 0:02:55]}  dxe4 {[%clk 0:02:42]} 12. Nxe4 {[%clk 0:02:56]}  Nxe4 {[%clk 0:02:40]} 13. Bxe4 {[%clk 0:02:57]}  Bh3 {[%clk 0:02:24]} 14. Re1 {[%clk 0:02:56]}  c5 {[%clk 0:02:19]} 15. Bxb7 {[%clk 0:02:39]}  Ra7 {[%clk 0:02:18]} 16. Bg2 {[%clk 0:02:40]}  Bxg2 {[%clk 0:02:13]} 17. Nxg2 {[%clk 0:02:41]}  a3 {[%clk 0:02:12]} 18. Bc3 {[%clk 0:02:39]}  cxd4 {[%clk 0:02:09]} 19. Bb4 {[%clk 0:02:37]}  d3 {[%clk 0:01:55]} 20. Rb1 {[%clk 0:02:23]}  Nc6 {[%clk 0:01:29]} 21. Bc5 {[%clk 0:02:22]}  Rd7 {[%clk 0:01:29]} 22. Qd2 {[%clk 0:02:17]}  Nd4 {[%clk 0:01:15]} 23. Bxd4 {[%clk 0:02:14]}  Bxd4 {[%clk 0:01:12]} 24. Nf4 {[%clk 0:02:11]}  Bb2 {[%clk 0:01:08]} 25. Nd5 {[%clk 0:02:10]}  e6 {[%clk 0:01:08]} 26. Nf4 {[%clk 0:02:01]}  Qf6 {[%clk 0:00:57]} 27. Re3 {[%clk 0:01:59]}  Bc3 {[%clk 0:00:38]} 28. Qc1 {[%clk 0:01:36]}  Rfd8 {[%clk 0:00:23]} 29. b4 {[%clk 0:01:17]}  d2 {[%clk 0:00:20]} 30. Qxc3 {[%clk 0:01:17]}  Qxc3 {[%clk 0:00:19]} 31. Rxc3 {[%clk 0:01:16]}  d1=Q+ {[%clk 0:00:18]} 32. Rxd1 {[%clk 0:01:17]}  Rxd1+ {[%clk 0:00:19]} 33. Kg2 {[%clk 0:01:18]}  g5 {[%clk 0:00:15]} 34. Nh5 {[%clk 0:01:12]}  R1d3 {[%clk 0:00:15]} 35. Rc1 {[%clk 0:01:09]}  Rd1 {[%clk 0:00:15]} 36. Rc3 {[%clk 0:01:09]}  R8d3 {[%clk 0:00:15]} 37. Rc2 {[%clk 0:01:07]}  R1d2 {[%clk 0:00:13]} 38. Rc1 {[%clk 0:01:08]}  Rxa2 {[%clk 0:00:13]} 39. c5 {[%clk 0:01:08]}  Rb2 {[%clk 0:00:11]} 40. c6 {[%clk 0:01:07]}  Rd8 {[%clk 0:00:11]} 41. Nf6+ {[%clk 0:01:08]}  Kg7 {[%clk 0:00:09]} 42. Ne4 {[%clk 0:01:05]}  Rxb4 {[%clk 0:00:08]} 43. c7 {[%clk 0:01:05]}  Rc8 {[%clk 0:00:04]} 44. Nd6 {[%clk 0:01:06]}  a2 {[%clk 0:00:03]} 45. Ra1 {[%clk 0:01:00]}  Ra8 {[%clk 0:00:01]} 46. c8=Q {[%clk 0:00:59]}  Rxc8 {[%clk 0:00:02]} 47. Nxc8 {[%clk 0:01:00]}  Ra4 {[%clk 0:00:03]} 48. Nd6 {[%clk 0:01:00]}  f5 {[%clk 0:00:01]} 49. Nb5 {[%clk 0:01:00]}  Kf6 {[%clk 0:00:01]} 50. Nc3 {[%clk 0:01:00]}  Ra3 {[%clk 0:00:01]} 51. Nb5 {[%clk 0:00:57]}  Ra5 {[%clk 0:00:02]} 52. Nd4 {[%clk 0:00:56]}  h5 {[%clk 0:00:02]} 53. Nb3 {[%clk 0:00:53]}  Ra3 {[%clk 0:00:02]} 54. Nc1 {[%clk 0:00:53]}  Rc3 {[%clk 0:00:02]} 55. h4 {[%clk 0:00:51]}  gxh4 {[%clk 0:00:01]} 56. gxh4 {[%clk 0:00:51]}  f4 {[%clk 0:00:01]} 57. Ne2 {[%clk 0:00:50]}  Rc2 {[%clk 0:00:01]} 58. Nxf4 {[%clk 0:00:50]}  Kf5 {[%clk 0:00:01]} 59. Nd3 {[%clk 0:00:50]}  Kg4 {[%clk 0:00:01]} 60. Nb4 {[%clk 0:00:48]}  Rb2 {[%clk 0:00:02]} 61. Nxa2 {[%clk 0:00:48]}  Kxh4 {[%clk 0:00:02]} 62. Nc3 {[%clk 0:00:48]}  Kg5 {[%clk 0:00:02]} 63. Ra5+ {[%clk 0:00:47]}  Kg6 {[%clk 0:00:02]} 64. Ne4 {[%clk 0:00:47]}  Re2 {[%clk 0:00:02]} 65. Ng3 {[%clk 0:00:47]}  Re1 {[%clk 0:00:01]} 66. Nxh5 {[%clk 0:00:47]}  Kf7 {[%clk 0:00:01]} 67. Nf4 {[%clk 0:00:47]}  Ke7 {[%clk 0:00:01]} 68. Nd3 {[%clk 0:00:48]}  Re4 {[%clk 0:00:02]} 69. Re5 {[%clk 0:00:47]}  Rd4 {[%clk 0:00:02]} 70. Nf4 {[%clk 0:00:47]}  Rd6 {[%clk 0:00:02]} 71. Kf3 {[%clk 0:00:44]}  Kf6 {[%clk 0:00:01]} 72. Rxe6+ {[%clk 0:00:40]}  Rxe6 {[%clk 0:00:02]} 73. Nxe6 {[%clk 0:00:41]}  Kxe6 {[%clk 0:00:03]} 74. Kf4 {[%clk 0:00:42]}  Kf6 {[%clk 0:00:03]} 75. f3 {[%clk 0:00:42]}  Kg6 {[%clk 0:00:04]} 76. Ke5 {[%clk 0:00:42]}  Kg7 {[%clk 0:00:04]} 77. Kf5 {[%clk 0:00:39]}  Kg8 {[%clk 0:00:04]} 78. Kf6 {[%clk 0:00:38]}  Kh8 {[%clk 0:00:02]} 79. f4 {[%clk 0:00:38]}  Kg8 {[%clk 0:00:02]} 80. f5 {[%clk 0:00:39]}  Kf8 {[%clk 0:00:02]} 81. Kg6 {[%clk 0:00:40]}  Kg8 {[%clk 0:00:03]} 82. f6 {[%clk 0:00:40]}  Kh8 {[%clk 0:00:03]} 83. Kf7 {[%clk 0:00:40]}  Kh7 {[%clk 0:00:04]} 84. Ke7 {[%clk 0:00:40]}  Kg6 {[%clk 0:00:05]} 85. f7 {[%clk 0:00:40]}  Kh7 {[%clk 0:00:06]} 86. f8=Q {[%clk 0:00:41]}  Kg6 {[%clk 0:00:06]} 87. Qf6+ {[%clk 0:00:41]}  Kh7 {[%clk 0:00:07]} 88. Qg5 {[%clk 0:00:41]}  Kh8 {[%clk 0:00:08]} 89. Kf7 {[%clk 0:00:41]}  Kh7 {[%clk 0:00:08]} 90. Qg7# {[%clk 0:00:42]} 1-0

[Event "January 9 Early 2024"]
[Site "https://www.chess.com"]
[Date "2024.01.11"]
[Round "9"]
[White "Madaminov, Mukhiddin"]
[Black "Pranav, V"]
[Result "0-1"]
[Board "208"]
[TimeControl "180+1"]
[WhiteFideId "14210703"]
[BlackFideId "25060783"]
[WhiteElo "2855"]
[BlackElo "3042"]
[WhiteTeam "UZB"]
[BlackTeam "IND"]
[WhiteClock "0:00:01"]
[BlackClock "0:00:04"]

1. e4 {[%clk 0:03:00]}  e5 {[%clk 0:02:59]} 2. Nf3 {[%clk 0:03:01]}  Nc6 {[%clk 0:02:59]} 3. Bb5 {[%clk 0:03:02]}  a6 {[%clk 0:02:57]} 4. Ba4 {[%clk 0:03:02]}  Nf6 {[%clk 0:02:56]} 5. O-O {[%clk 0:03:02]}  b5 {[%clk 0:02:55]} 6. Bb3 {[%clk 0:03:01]}  Bc5 {[%clk 0:02:56]} 7. a4 {[%clk 0:03:02]}  Rb8 {[%clk 0:02:55]} 8. c3 {[%clk 0:03:02]}  d6 {[%clk 0:02:55]} 9. d4 {[%clk 0:03:02]}  Bb6 {[%clk 0:02:56]} 10. a5 {[%clk 0:03:02]}  Ba7 {[%clk 0:02:56]} 11. h3 {[%clk 0:03:03]}  O-O {[%clk 0:02:57]} 12. Be3 {[%clk 0:02:52]}  Re8 {[%clk 0:02:57]} 13. Nbd2 {[%clk 0:02:50]}  h6 {[%clk 0:02:50]} 14. Re1 {[%clk 0:02:34]}  Ra8 {[%clk 0:02:43]} 15. Qb1 {[%clk 0:02:23]}  Qe7 {[%clk 0:02:39]} 16. Qa2 {[%clk 0:02:15]}  Nd8 {[%clk 0:02:36]} 17. Rad1 {[%clk 0:01:51]}  c5 {[%clk 0:02:29]} 18. dxe5 {[%clk 0:01:44]}  dxe5 {[%clk 0:02:29]} 19. Bd5 {[%clk 0:01:36]}  Rb8 {[%clk 0:02:28]} 20. c4 {[%clk 0:01:30]}  Bb7 {[%clk 0:01:47]} 21. b3 {[%clk 0:01:28]}  Nc6 {[%clk 0:01:29]} 22. Bxc6 {[%clk 0:01:18]}  Bxc6 {[%clk 0:01:30]} 23. Qa1 {[%clk 0:01:15]}  Nxe4 {[%clk 0:01:09]} 24. Nxe4 {[%clk 0:00:42]}  Bxe4 {[%clk 0:01:09]} 25. Nxe5 {[%clk 0:00:43]}  Qf6 {[%clk 0:01:00]} 26. Nd7 {[%clk 0:00:27]}  Qg6 {[%clk 0:00:59]} 27. f3 {[%clk 0:00:16]}  Bxf3 {[%clk 0:00:54]} 28. Rd2 {[%clk 0:00:16]}  Rbd8 {[%clk 0:00:44]} 29. Ne5 {[%clk 0:00:16]}  Rxd2 {[%clk 0:00:42]} 30. Nxg6 {[%clk 0:00:11]}  Rxg2+ {[%clk 0:00:43]} 31. Kf1 {[%clk 0:00:12]}  Rxg6 {[%clk 0:00:39]} 32. Bf4 {[%clk 0:00:09]}  Rd8 {[%clk 0:00:36]} 33. Qc3 {[%clk 0:00:06]}  Bc6 {[%clk 0:00:29]} 34. Re7 {[%clk 0:00:07]}  Rd1+ {[%clk 0:00:19]} 35. Ke2 {[%clk 0:00:06]}  Rd4 {[%clk 0:00:11]} 36. Be3 {[%clk 0:00:06]}  b4 {[%clk 0:00:11]} 37. Qe1 {[%clk 0:00:04]}  Rg2+ {[%clk 0:00:05]} 38. Kf1 {[%clk 0:00:02]}  Rd6 {[%clk 0:00:03]} 39. Rxa7 {[%clk 0:00:02]}  Rf6+ {[%clk 0:00:03]} 40. Bf2 {[%clk 0:00:03]}  Rh2 {[%clk 0:00:03]} 41. Qe3 {[%clk 0:00:03]}  Bf3 {[%clk 0:00:03]} 42. Ke1 {[%clk 0:00:03]}  Rh1+ {[%clk 0:00:02]} 43. Kd2 {[%clk 0:00:03]}  Rh2 {[%clk 0:00:03]} 44. Rxa6 {[%clk 0:00:03]}  Rxa6 {[%clk 0:00:03]} 45. Qxf3 {[%clk 0:00:03]}  Rf6 {[%clk 0:00:03]} 46. Qxf6 {[%clk 0:00:03]}  gxf6 {[%clk 0:00:03]} 47. Ke2 {[%clk 0:00:03]}  Rxh3 {[%clk 0:00:02]} 48. Bxc5 {[%clk 0:00:03]}  Rxb3 {[%clk 0:00:02]} 49. a6 {[%clk 0:00:04]}  Ra3 {[%clk 0:00:02]} 50. a7 {[%clk 0:00:05]}  Ra2+ {[%clk 0:00:03]} 51. Kd3 {[%clk 0:00:05]}  b3 {[%clk 0:00:04]} 52. Kc3 {[%clk 0:00:06]}  b2 {[%clk 0:00:04]} 53. Kc2 {[%clk 0:00:06]}  h5 {[%clk 0:00:05]} 54. Kb1 {[%clk 0:00:05]}  Ra6 {[%clk 0:00:05]} 55. Kxb2 {[%clk 0:00:04]}  h4 {[%clk 0:00:05]} 56. Kb3 {[%clk 0:00:02]}  h3 {[%clk 0:00:06]} 57. Bg1 {[%clk 0:00:03]}  Rxa7 {[%clk 0:00:06]} 58. c5 {[%clk 0:00:02]}  Kf8 {[%clk 0:00:05]} 59. Kc4 {[%clk 0:00:01]}  Ke8 {[%clk 0:00:06]} 60. c6 {[%clk 0:00:01]}  Ra1 {[%clk 0:00:05]} 61. Bh2 {[%clk 0:00:01]}  Rh1 {[%clk 0:00:04]} 0-1

[Event "January 9 Early 2024"]
[Site "https://www.chess.com"]
[Date "2024.01.11"]
[Round "9"]
[White "Kozak, Antoni"]
[Black "Arslanov, Shamil"]
[Result "1-0"]
[Board "209"]
[TimeControl "180+1"]
[WhiteFideId "21832030"]
[BlackFideId "4192826"]
[WhiteElo "2766"]
[BlackElo "2630"]
[WhiteTeam "POL"]
[BlackTeam "RUS"]
[WhiteClock "0:00:17"]
[BlackClock "0:00:01"]

1. e4 {[%clk 0:03:00]}  d6 {[%clk 0:02:51]} 2. Nc3 {[%clk 0:02:59]}  a6 {[%clk 0:02:29]} 3. Bc4 {[%clk 0:02:56]}  b5 {[%clk 0:02:18]} 4. Bxf7+ {[%clk 0:02:49]}  Kxf7 {[%clk 0:02:13]} 5. Qh5+ {[%clk 0:02:50]}  g6 {[%clk 0:02:00]} 6. Qd5+ {[%clk 0:02:50]}  e6 {[%clk 0:01:49]} 7. Qxa8 {[%clk 0:02:50]}  Nf6 {[%clk 0:01:49]} 8. Qxb8 {[%clk 0:02:48]}  Be7 {[%clk 0:01:48]} 9. Nf3 {[%clk 0:02:44]}  Kg7 {[%clk 0:01:48]} 10. a4 {[%clk 0:02:36]}  Nd7 {[%clk 0:01:46]} 11. Qa7 {[%clk 0:02:35]}  b4 {[%clk 0:01:46]} 12. Qd4+ {[%clk 0:02:34]}  e5 {[%clk 0:01:46]} 13. Qxb4 {[%clk 0:02:34]}  Rf8 {[%clk 0:01:47]} 14. Nd5 {[%clk 0:02:24]}  Bh4 {[%clk 0:01:45]} 15. Qc3 {[%clk 0:02:15]}  Nc5 {[%clk 0:01:44]} 16. Qe3 {[%clk 0:02:11]}  Bg4 {[%clk 0:01:43]} 17. Nxh4 {[%clk 0:01:56]}  Qxh4 {[%clk 0:01:44]} 18. d3 {[%clk 0:01:51]}  Ne6 {[%clk 0:01:32]} 19. Qh6+ {[%clk 0:01:43]}  Qxh6 {[%clk 0:01:32]} 20. Bxh6+ {[%clk 0:01:44]}  Kxh6 {[%clk 0:01:33]} 21. f3 {[%clk 0:01:45]}  Bh5 {[%clk 0:01:05]} 22. g4 {[%clk 0:01:44]}  Nd4 {[%clk 0:01:05]} 23. O-O-O {[%clk 0:01:43]}  c6 {[%clk 0:00:57]} 24. Nc3 {[%clk 0:01:36]}  Rxf3 {[%clk 0:00:44]} 25. gxh5 {[%clk 0:01:36]}  g5 {[%clk 0:00:40]} 26. Rdf1 {[%clk 0:01:35]}  Rh3 {[%clk 0:00:36]} 27. Rf6+ {[%clk 0:01:35]}  Kxh5 {[%clk 0:00:37]} 28. Rxd6 {[%clk 0:01:34]}  g4 {[%clk 0:00:38]} 29. Rd7 {[%clk 0:01:26]}  h6 {[%clk 0:00:37]} 30. Rg7 {[%clk 0:01:26]}  Kh4 {[%clk 0:00:29]} 31. Kd1 {[%clk 0:01:24]}  h5 {[%clk 0:00:29]} 32. Ne2 {[%clk 0:01:20]}  Nf3 {[%clk 0:00:29]} 33. Ng3 {[%clk 0:01:16]}  Rxh2 {[%clk 0:00:29]} 34. Rxh2+ {[%clk 0:01:13]}  Nxh2 {[%clk 0:00:30]} 35. Nxh5 {[%clk 0:01:13]}  Nf3 {[%clk 0:00:21]} 36. Nf6 {[%clk 0:00:52]}  g3 {[%clk 0:00:21]} 37. Ke2 {[%clk 0:00:51]}  Nd4+ {[%clk 0:00:15]} 38. Kf1 {[%clk 0:00:51]}  Nxc2 {[%clk 0:00:16]} 39. Kg1 {[%clk 0:00:51]}  Ne1 {[%clk 0:00:11]} 40. Rh7+ {[%clk 0:00:48]}  Kg5 {[%clk 0:00:11]} 41. Nd7 {[%clk 0:00:47]}  Nxd3 {[%clk 0:00:08]} 42. Kg2 {[%clk 0:00:43]}  Kf4 {[%clk 0:00:06]} 43. Rf7+ {[%clk 0:00:40]}  Kxe4 {[%clk 0:00:06]} 44. Kxg3 {[%clk 0:00:40]}  Nxb2 {[%clk 0:00:07]} 45. Nc5+ {[%clk 0:00:37]}  Kd4 {[%clk 0:00:07]} 46. Nxa6 {[%clk 0:00:37]}  Nxa4 {[%clk 0:00:08]} 47. Rd7+ {[%clk 0:00:35]}  Ke3 {[%clk 0:00:07]} 48. Nb4 {[%clk 0:00:32]}  c5 {[%clk 0:00:05]} 49. Nd5+ {[%clk 0:00:32]}  Ke4 {[%clk 0:00:04]} 50. Nf6+ {[%clk 0:00:32]}  Kf5 {[%clk 0:00:03]} 51. Ng4 {[%clk 0:00:30]}  Nc3 {[%clk 0:00:02]} 52. Nf2 {[%clk 0:00:25]}  Ne2+ {[%clk 0:00:02]} 53. Kf3 {[%clk 0:00:23]}  Nd4+ {[%clk 0:00:02]} 54. Ke3 {[%clk 0:00:23]}  Ke6 {[%clk 0:00:02]} 55. Rd8 {[%clk 0:00:22]}  Nf5+ {[%clk 0:00:03]} 56. Kd2 {[%clk 0:00:22]}  Nd6 {[%clk 0:00:04]} 57. Rh8 {[%clk 0:00:20]}  Kd5 {[%clk 0:00:05]} 58. Rd8 {[%clk 0:00:20]}  Ke6 {[%clk 0:00:05]} 59. Ke2 {[%clk 0:00:19]}  Ke7 {[%clk 0:00:05]} 60. Ra8 {[%clk 0:00:19]}  Ke6 {[%clk 0:00:06]} 61. Nd3 {[%clk 0:00:19]}  c4 {[%clk 0:00:05]} 62. Nb4 {[%clk 0:00:18]}  Ne4 {[%clk 0:00:05]} 63. Rc8 {[%clk 0:00:16]}  c3 {[%clk 0:00:04]} 64. Ke3 {[%clk 0:00:16]}  Kf5 {[%clk 0:00:04]} 65. Rf8+ {[%clk 0:00:16]}  Nf6 {[%clk 0:00:05]} 66. Nd5 {[%clk 0:00:15]}  c2 {[%clk 0:00:04]} 67. Rxf6+ {[%clk 0:00:16]}  Kg4 {[%clk 0:00:04]} 68. Rc6 {[%clk 0:00:16]}  e4 {[%clk 0:00:04]} 69. Kxe4 {[%clk 0:00:16]}  Kg5 {[%clk 0:00:01]} 70. Rxc2 {[%clk 0:00:15]}  Kh6 {[%clk 0:00:01]} 71. Rg2 {[%clk 0:00:15]}  Kh7 {[%clk 0:00:01]} 72. Kf5 {[%clk 0:00:16]}  Kh8 {[%clk 0:00:01]} 73. Kf6 {[%clk 0:00:17]} 1-0